fUST/lending_fUST_20250930
["ID","MTS","AMOUNT","RATE_DAILY","PERIOD"]
[388531598,1759235432025,-635.9,0.00019178,2]
[388531601,1759235432034,-480.0,0.00019178,2]
[388531603,1759235432043,-500.0,0.00019178,2]
[388531606,1759235432052,-500.0,0.00019178,2]
[388531609,1759235432061,-500.0,0.00019178,2]
[388531612,1759235432070,-500.0,0.00019178,2]
[388531615,1759235432079,-500.0,0.00019178,2]
[388531618,1759235432089,-500.0,0.00019178,2]
[388531621,1759235432099,-500.0,0.00019178,2]
[388531624,1759235432108,-500.0,0.00019178,2]
[388531627,1759235432117,-697.41,0.00019178,2]
[388531630,1759235432127,-500.0,0.00019178,2]
[388531633,1759235432136,-483.84566298,0.00019178,2]
[388531634,1759235432145,-480.0,0.00019178,2]
[388531635,1759235432154,-500.0,0.00019178,2]
[388531636,1759235432163,-500.0,0.00019178,2]
[388531637,1759235432172,-500.0,0.00019178,2]
[388531638,1759235432181,-639.81,0.00019178,2]
[388531639,1759235432190,-500.0,0.00019178,2]
[388531640,1759235432200,-174.07,0.00019178,2]
[388531641,1759235432209,-480.0,0.00019178,2]
[388531642,1759235432218,-500.0,0.00019178,2]
[388531643,1759235432227,-500.0,0.00019178,2]
[388531644,1759235432236,-500.0,0.00019178,2]
[388531645,1759235432245,-500.0,0.00019178,2]
[388531646,1759235432254,-500.0,0.00019178,2]
[388531647,1759235432262,-500.0,0.00019178,2]
[388531648,1759235432271,-500.0,0.00019178,2]
[388531649,1759235432280,-500.0,0.00019178,2]
[388531650,1759235432289,-500.0,0.00019178,2]
[388531651,1759235432299,-979.51,0.00019178,2]
[388531652,1759235432309,-500.0,0.00019178,2]
[388531653,1759235432318,-683.16,0.00019178,2]
[388531654,1759235432327,-541.06806257,0.00019178,2]
[388531655,1759235432336,-500.0,0.00019178,2]
[388531656,1759235432346,-500.0,0.00019178,2]
[388531657,1759235432355,-500.0,0.00019178,2]
[388531658,1759235432364,-500.0,0.00019178,2]
[388531659,1759235432373,-500.0,0.00019178,2]
[388531660,1759235432382,-500.0,0.00019178,2]
[388531661,1759235432392,-500.0,0.00019178,2]
[388531662,1759235432401,-500.0,0.00019178,2]
[388531663,1759235432410,-500.0,0.00019178,2]
[388531664,1759235432419,-500.0,0.00019178,2]
[388531665,1759235432428,-500.0,0.00019178,2]
[388531666,1759235432437,-500.0,0.00019178,2]
[388531667,1759235432446,-500.0,0.00019178,2]
[388531668,1759235432455,-4042.14,0.00019178,2]
[388531669,1759235432464,-500.0,0.00019178,2]
[388531670,1759235432474,-500.0,0.00019178,2]
[388531672,1759235432483,-481.98777819,0.00019178,2]
[388531673,1759235432492,-481.94456276,0.00019178,2]
[388531675,1759235432501,-481.99024773,0.00019178,2]
[388531677,1759235432511,-500.0,0.00019178,2]
[388531679,1759235432520,-500.0,0.00019178,2]
[388531681,1759235432529,-500.0,0.00019178,2]
[388531683,1759235432538,-500.0,0.00019178,2]
[388531685,1759235432547,-14.32530248,0.00019178,2]
[388531775,1759235439940,-781.55469752,0.00019178,2]
[388531776,1759235439949,-204.16791316,0.00019178,2]
[388531815,1759235462406,300.0,0.00019177,2]
[388531816,1759235502677,247.08,0.00019176,2]
[388531817,1759235514365,482.0,0.00019166,2]
[388531818,1759235520123,964.0,0.00018961,2]
[388531819,1759235522356,300.0,0.00019177,2]
[388531821,1759235528340,12.45920673,0.00019177,2]
[388531822,1759235528363,142.54079327,0.00019177,2]
[388531828,1759235542270,469.7383173,0.00019078,2]
[388531829,1759235582653,300.0,0.00019177,2]
[388531830,1759235624543,9087.73088943,0.00019078,2]
[388531831,1759235624572,2649.35694196,0.00019078,2]
[388531842,1759235643390,300.0,0.00019177,2]
[388531851,1759235688579,3769.0,0.0002191,120]
[388531852,1759235691150,3769.0,0.000219,120]
[388531853,1759235691910,3769.0,0.0002189,120]
[388531854,1759235692587,3769.0,0.0002479,120]
[388531855,1759235694707,3769.0,0.0002478,120]
[388531856,1759235703896,3769.0,0.0002477,120]
[388531860,1759235757861,2095.24202138,0.00019,2]
[388531862,1759235829028,411.02102769,0.00019078,2]
[388531864,1759235858218,2112.24334351,0.00019078,2]
[388531888,1759235997258,-300.0,0.00019177,2]
[388531889,1759235997285,-300.0,0.00019177,2]
[388531890,1759235997313,-300.0,0.00019177,2]
[388531891,1759235997503,-300.0,0.00019177,2]
[388531892,1759236002255,300.0,0.00019177,2]
[388531893,1759236052150,1508.0,0.0002191,120]
[388531894,1759236052689,1508.0,0.000219,120]
[388531895,1759236055026,1508.0,0.0002189,120]
[388531896,1759236055698,1508.0,0.0002484,120]
[388531897,1759236091090,1508.0,0.0002483,120]
[388531898,1759236093146,1508.0,0.0002482,120]
[388531899,1759236094246,1508.0,0.0002839,120]
[388531900,1759236096008,1508.0,0.0002838,120]
[388531901,1759236102789,197.664,0.00019177,2]
[388531902,1759236111924,359.64339922,0.00019078,2]
[388531903,1759236122761,300.0,0.00019177,2]
[388531904,1759236138342,1018.7,0.00019168,3]
[388531905,1759236149003,509.35,0.00019168,3]
[388531908,1759236159751,254.67,0.00019168,3]
[388531909,1759236170424,764.06,0.00019168,3]
[388531910,1759236182485,300.0,0.00019177,2]
[388531911,1759236198466,1689.7946748,0.00019078,2]
[388531912,1759236214149,301.43235547,0.00018219,2]
[388531913,1759236216191,1204.52369245,0.00018219,2]
[388531914,1759236242795,300.0,0.00019177,2]
[388531917,1759236302208,100.17187806,0.00019177,2]
[388531918,1759236302231,199.82812194,0.00019177,2]
[388531998,1759236392348,314.6879743,0.00019078,2]
[388532000,1759236412228,-290.22086844,0.00019177,2]
[388532001,1759236415526,302.0,0.0002191,120]
[388532002,1759236416312,302.0,0.000219,120]
[388532003,1759236417099,302.0,0.0002189,120]
[388532004,1759236417822,302.0,0.0002485,120]
[388532005,1759236419458,302.0,0.0002484,120]
[388532006,1759236422168,302.0,0.0002483,120]
[388532008,1759236538836,1351.83573984,0.00019078,2]
[388532011,1759236573489,177.4,0.00019166,2]
[388532012,1759236604899,199.08438339,0.00019153,2]
[388532013,1759236612180,-300.0,0.00019177,2]
[388532074,1759236632145,-270.53015966,0.00019177,2]
[388532076,1759236632156,-189.37111176,0.00019177,2]
[388532078,1759236632165,-160.0,0.00019178,2]
[388532082,1759236632174,-500.0,0.00019178,2]
[388532086,1759236632184,-524.66,0.00019178,2]
[388532089,1759236632193,-482.70768048,0.00019178,2]
[388532092,1759236632203,-480.0,0.00019178,2]
[388532094,1759236632212,-500.0,0.00019178,2]
[388532096,1759236632222,-480.0,0.00019178,2]
[388532098,1759236632231,-480.0,0.00019178,2]
[388532101,1759236632240,-389.43746735,0.00019178,2]
[388532104,1759236632249,-500.0,0.00019178,2]
[388532106,1759236632258,-216.40184526,0.00019178,2]
[388532108,1759236632267,-480.0,0.00019178,2]
[388532110,1759236632276,-500.0,0.00019178,2]
[388532112,1759236632285,-482.34716547,0.00019178,2]
[388532113,1759236632294,-43364.65722202,0.00019178,2]
[388532246,1759236638009,-900.0,0.00019178,2]
[388532247,1759236638020,-1068.90014346,0.00019178,2]
[388532431,1759236640014,-12598.013002,0.00019178,2]
[388532987,1759236646080,-1302.66927745,0.00019178,2]
[388532989,1759236646091,-2028.03820155,0.00019178,2]
[388533006,1759236646246,-11888.08783139,0.00019178,2]
[388534532,1759236662626,300.0,0.00019176,2]
[388537796,1759236697090,275.35197753,0.00019078,2]
[388538349,1759236702778,158.131,0.00019177,2]
[388540067,1759236722629,300.0,0.00019176,2]
[388541099,1759236734322,594.24,0.00019168,3]
[388541992,1759236743871,1200.0,0.00019176,2]
[388542108,1759236745028,297.12,0.00019168,3]
[388542647,1759236750827,6275.16702247,0.00019078,2]
[388542650,1759236750851,10000.01,0.00019078,2]
[388542654,1759236750877,10000.01,0.00019078,2]
[388542657,1759236750903,1242.42463512,0.00019078,2]
[388542840,1759236752675,168.0,0.00019135,2]
[388543097,1759236755653,891.36,0.00019168,3]
[388544394,1759236772707,150.5,0.0002191,120]
[388544477,1759236773566,150.5,0.000219,120]
[388544558,1759236774471,150.5,0.0002189,120]
[388544627,1759236775801,150.5,0.0002485,120]
[388544683,1759236776357,150.5,0.0002484,120]
[388544780,1759236777303,150.5,0.0002483,120]
[388545319,1759236782785,300.0,0.00019176,2]
[388547307,1759236825774,800.0,0.00019143,2]
[388547309,1759236843738,300.0,0.00019176,2]
[388547331,1759236879363,1119.04600217,0.00019089,2]
[388547337,1759236902230,300.0,0.00019176,2]
[388547338,1759236963130,300.0,0.00019176,2]
[388547339,1759236994756,325.66350831,0.00019078,2]
[388547340,1759236998800,500.0,0.000191,2]
[388547341,1759237022358,300.0,0.00019176,2]
[388547342,1759237028391,1457.08850137,0.00019,2]
[388547343,1759237082702,300.0,0.00019176,2]
[388547344,1759237090155,267.3848049,0.00018187,2]
[388547345,1759237129671,150.5,0.0002191,120]
[388547346,1759237131161,156.35,0.000219,120]
[388547347,1759237137704,1429.04254813,0.00018,2]
[388547348,1759237137727,1082.42857991,0.00018,2]
[388547349,1759237142618,300.0,0.00019176,2]
[388547350,1759237202494,300.0,0.00019176,2]
[388547351,1759237269210,300.0,0.00019176,2]
[388547352,1759237302767,158.131,0.00019177,2]
[388547353,1759237322752,300.0,0.00019176,2]
[388547354,1759237340047,297.12,0.00019168,3]
[388547356,1759237350782,891.36,0.00019168,3]
[388547357,1759237382609,300.0,0.00019176,2]
[388547360,1759237443062,300.0,0.00019176,2]
[388547361,1759237502647,300.0,0.00019176,2]
[388547362,1759237561898,895.23680172,0.0001909,2]
[388547363,1759237562843,300.0,0.00019176,2]
[388547364,1759237622763,300.0,0.00019176,2]
[388547366,1759237682382,300.0,0.00019176,2]
[388547367,1759237726964,3675.73361837,0.00019078,2]
[388547368,1759237726988,10000.01,0.00019078,2]
[388547369,1759237727011,3005.68389018,0.00019078,2]
[388547370,1759237742979,300.0,0.00019176,2]
[388547371,1759237803570,300.0,0.00019176,2]
[388547395,1759237832222,-500.0,0.00019177,2]
[388547396,1759237832232,-500.0,0.00019177,2]
[388547398,1759237832242,-228.73998509,0.00019177,2]
[388547400,1759237832252,-251.26003991,0.00019177,2]
[388547401,1759237832263,-248.73996009,0.00019177,2]
[388547402,1759237832273,-500.0,0.00019177,2]
[388547404,1759237832282,-500.0,0.00019177,2]
[388547405,1759237832291,-85.44073805,0.00019178,2]
[388547406,1759237832307,-334.55926195,0.00019178,2]
[388547407,1759237832317,-500.0,0.00019178,2]
[388547408,1759237832327,-500.0,0.00019178,2]
[388547409,1759237832337,-500.0,0.00019178,2]
[388547410,1759237832346,-500.0,0.00019178,2]
[388547411,1759237832357,-500.0,0.00019178,2]
[388547412,1759237832366,-1440.1932157,0.00019178,2]
[388547413,1759237832376,-178.24380075,0.00019178,2]
[388547414,1759237832385,-500.0,0.00019178,2]
[388547415,1759237832395,-480.0,0.00019178,2]
[388547417,1759237832409,-480.0,0.00019178,2]
[388547418,1759237832420,-480.0,0.00019178,2]
[388547419,1759237832429,-480.0,0.00019178,2]
[388547420,1759237832438,-480.0,0.00019178,2]
[388547421,1759237832597,-480.0,0.00019178,2]
[388547422,1759237832606,-500.0,0.00019178,2]
[388547423,1759237832615,-480.0,0.00019178,2]
[388547424,1759237832625,-500.0,0.00019178,2]
[388547425,1759237832634,-500.0,0.00019178,2]
[388547426,1759237832643,-500.0,0.00019178,2]
[388547427,1759237832653,-329.0,0.00019178,2]
[388547428,1759237832662,-500.0,0.00019178,2]
[388547429,1759237832672,-556.39803203,0.00019178,2]
[388547430,1759237832681,-500.0,0.00019178,2]
[388547431,1759237832691,-480.0,0.00019178,2]
[388547432,1759237832700,-145.78308319,0.00019178,2]
[388547433,1759237832712,-354.21691681,0.00019178,2]
[388547434,1759237832722,-465.73435806,0.00019178,2]
[388547435,1759237832731,-462.51660922,0.00019178,2]
[388547436,1759237832740,-500.0,0.00019178,2]
[388547437,1759237832749,-265.441213,0.00019178,2]
[388547438,1759237832758,-480.0,0.00019178,2]
[388547439,1759237832767,-480.0,0.00019178,2]
[388547440,1759237832777,-480.0,0.00019178,2]
[388547441,1759237832785,-500.0,0.00019178,2]
[388547442,1759237832795,-512.16148917,0.00019178,2]
[388547443,1759237832804,-500.0,0.00019178,2]
[388547444,1759237832813,-516.14,0.00019178,2]
[388547445,1759237832821,-500.0,0.00019178,2]
[388547446,1759237832830,-500.0,0.00019178,2]
[388547447,1759237832838,-500.0,0.00019178,2]
[388547448,1759237832847,-500.0,0.00019178,2]
[388547449,1759237832855,-461.77261665,0.00019178,2]
[388547450,1759237832864,-480.0,0.00019178,2]
[388547451,1759237832872,-500.0,0.00019178,2]
[388547452,1759237832880,-325.53498836,0.00019178,2]
[388547460,1759237838204,-174.46501164,0.00019178,2]
[388547461,1759237838214,-500.0,0.00019178,2]
[388547462,1759237838224,-151.0,0.00019178,2]
[388547463,1759237838234,-186.25445276,0.00019178,2]
[388547465,1759237838315,-293.74554724,0.00019178,2]
[388547466,1759237838324,-153.256626,0.00019178,2]
[388547467,1759237838333,-151.17505602,0.00019178,2]
[388547468,1759237838343,-158.31954602,0.00019178,2]
[388547469,1759237838352,-481.80174541,0.00019178,2]
[388547470,1759237838361,-462.62974144,0.00019178,2]
[388547471,1759237838371,-480.0,0.00019178,2]
[388547472,1759237838381,-500.0,0.00019178,2]
[388547473,1759237838390,-500.0,0.00019178,2]
[388547474,1759237838400,-480.56233548,0.00019178,2]
[388547511,1759237840236,-22.23766452,0.00019178,2]
[388547513,1759237840246,-394.07233549,0.00019178,2]
[388547516,1759237840258,-105.92766451,0.00019178,2]
[388547518,1759237840267,-500.0,0.00019178,2]
[388547520,1759237840276,-480.0,0.00019178,2]
[388547522,1759237840285,-26.840246,0.00019178,2]
[388547540,1759237840522,284.95556978,0.00019078,2]
[388547959,1759237862783,300.0,0.00019177,2]
[388547960,1759237902652,162.834267,0.00019094,2]
[388547961,1759237902810,158.131,0.00019177,2]
[388547962,1759237923061,300.0,0.00019177,2]
[388547963,1759237935475,594.24,0.00019168,3]
[388547964,1759237983033,300.0,0.00019177,2]
[388547966,1759238043567,300.0,0.00019177,2]
[388547967,1759238067124,1000.0,0.00019177,2]
[388547968,1759238079851,1000.2,0.00019177,2]
[388547969,1759238102945,300.0,0.00019177,2]
[388547970,1759238106748,605.0,0.00019177,2]
[388547971,1759238177864,4506.26431567,0.00028767,120]
[388547972,1759238244434,716.1894414,0.00019078,2]
[388547974,1759238355821,249.33612354,0.00019078,2]
[388547976,1759238422071,-300.0,0.00019177,2]
[388547977,1759238453437,162.834267,0.00019094,2]
[388547978,1759238462872,300.0,0.00019177,2]
[388547979,1759238502811,158.132,0.00019177,2]
[388547980,1759238522578,300.0,0.00019177,2]
[388547981,1759238583358,300.0,0.00019177,2]
[388547982,1759238584746,572.95155312,0.00019078,2]
[388547983,1759238643150,300.0,0.00019177,2]
[388547984,1759238666066,218.16910808,0.00019078,2]
[388547986,1759238702611,300.0,0.00019177,2]
[388547996,1759238920175,190.89796957,0.00019078,2]
[388548002,1759238925257,458.36124248,0.00019078,2]
[388548024,1759239024919,-300.0,0.00019177,2]
[388548074,1759239038364,-500.0,0.00019178,2]
[388548077,1759239038374,-203.52979223,0.00019178,2]
[388548089,1759239038480,-276.47020777,0.00019178,2]
[388548091,1759239038490,-74.80534871,0.00019178,2]
[388548108,1759239040451,-405.19465129,0.00019178,2]
[388548109,1759239040461,-500.0,0.00019178,2]
[388548110,1759239040471,-500.0,0.00019178,2]
[388548111,1759239040480,-482.95787549,0.00019178,2]
[388548112,1759239040491,-483.00805666,0.00019178,2]
[388548113,1759239040500,-481.56205924,0.00019178,2]
[388548114,1759239040509,-482.83744441,0.00019178,2]
[388548115,1759239040518,-481.96048169,0.00019178,2]
[388548116,1759239040528,-307.74505302,0.00019178,2]
[388548117,1759239040537,-500.0,0.00019178,2]
[388548118,1759239040546,-500.0,0.00019178,2]
[388548119,1759239040555,-500.0,0.00019178,2]
[388548120,1759239040564,-176.15117883,0.00019178,2]
[388548121,1759239040573,-500.0,0.00019178,2]
[388548122,1759239040583,-500.0,0.00019178,2]
[388548123,1759239040593,-500.0,0.00019178,2]
[388548124,1759239040602,-2069.51352665,0.00019178,2]
[388548137,1759239053573,512.92851365,0.00019177,2]
[388548138,1759239075075,301.17,0.00019168,3]
[388548139,1759239085847,150.58,0.00019168,3]
[388548140,1759239096560,451.79,0.00019168,3]
[388548141,1759239102835,158.133,0.00019177,2]
[388548142,1759239124061,300.0,0.00019177,2]
[388548143,1759239131246,167.0357234,0.00019078,2]
[388548144,1759239150358,301.16,0.00019168,3]
[388548145,1759239161357,150.58,0.00019168,3]
[388548146,1759239172054,451.78,0.00019168,3]
[388548147,1759239182663,300.0,0.00019177,2]
[388548148,1759239197404,9006.44474413,0.00028,120]
[388548149,1759239209007,241.25833997,0.00019078,2]
[388548150,1759239242526,300.0,0.00019177,2]
[388548151,1759239265469,368.23567395,0.00019078,2]
[388548153,1759239297679,355.4410135,0.00018257,2]
[388548159,1759239302468,300.0,0.00019177,2]
[388548163,1759239344037,167.03572335,0.00019078,2]
[388548164,1759239363265,300.0,0.00019177,2]
[388548169,1759239423204,300.0,0.00019177,2]
[388548171,1759239483695,300.0,0.00019177,2]
[388548173,1759239543086,300.0,0.00019177,2]
[388548174,1759239547298,167.03572335,0.00019078,2]
[388548244,1759239602587,300.0,0.00019177,2]
[388548245,1759239614127,294.58853916,0.00019078,2]
[388548247,1759239723581,167.03572335,0.00019078,2]
[388548248,1759239746661,150.58,0.00019168,3]
[388548249,1759239757373,451.74,0.00019168,3]
[388548252,1759239878820,167.03572335,0.00019078,2]
[388548265,1759239952688,235.67083132,0.00019078,2]
[388548266,1759240005144,-290.22086844,0.00019177,2]
[388548267,1759240032436,167.03572335,0.00019078,2]
[388548270,1759240168176,167.03572335,0.00019078,2]
[388548306,1759240232790,-300.0,0.00019177,2]
[388548308,1759240232800,-253.67525093,0.00019178,2]
[388548318,1759240232883,-246.32474907,0.00019178,2]
[388548320,1759240232892,-480.0,0.00019178,2]
[388548322,1759240232902,-480.0,0.00019178,2]
[388548324,1759240232911,-481.74453916,0.00019178,2]
[388548326,1759240232921,-500.0,0.00019178,2]
[388548328,1759240232929,-500.0,0.00019178,2]
[388548330,1759240232939,-480.0,0.00019178,2]
[388548332,1759240232948,-480.0,0.00019178,2]
[388548334,1759240232958,-36.81584928,0.00019178,2]
[388548336,1759240232970,-443.18415072,0.00019178,2]
[388548338,1759240232979,-480.0,0.00019178,2]
[388548340,1759240232988,-483.20249278,0.00019178,2]
[388548342,1759240232997,-500.0,0.00019178,2]
[388548344,1759240233009,-480.0,0.00019178,2]
[388548347,1759240233018,-22.54748946,0.00019178,2]
[388548607,1759240240722,-477.45251054,0.00019178,2]
[388548609,1759240240732,-500.0,0.00019178,2]
[388548611,1759240240743,-400.0,0.00019178,2]
[388548614,1759240240752,-483.24548293,0.00019178,2]
[388548615,1759240240764,-400.0,0.00019178,2]
[388548617,1759240240773,-274.63393901,0.00019178,2]
[388548619,1759240240782,-480.0,0.00019178,2]
[388548621,1759240240792,-500.0,0.00019178,2]
[388548623,1759240240801,-500.0,0.00019178,2]
[388548625,1759240240810,-480.0,0.00019178,2]
[388548627,1759240240819,-500.0,0.00019178,2]
[388548629,1759240240829,-500.0,0.00019178,2]
[388548631,1759240240838,-480.0,0.00019178,2]
[388548633,1759240240848,-500.0,0.00019178,2]
[388548635,1759240240857,-482.13495636,0.00019178,2]
[388548637,1759240240867,-485.98714132,0.00019178,2]
[388548639,1759240240876,-500.0,0.00019178,2]
[388548641,1759240240886,-460.0,0.00019178,2]
[388548643,1759240240895,-460.0,0.00019178,2]
[388548645,1759240240906,-461.21940055,0.00019178,2]
[388548647,1759240240915,-423.34468348,0.00019178,2]
[388548649,1759240240926,-500.0,0.00019178,2]
[388548651,1759240240935,-173.46210652,0.00019178,2]
[388548653,1759240240947,-326.53789348,0.00019178,2]
[388548655,1759240240958,-676.42,0.00019178,2]
[388548657,1759240240967,-532.06,0.00019178,2]
[388548659,1759240240977,-500.0,0.00019178,2]
[388548661,1759240240986,-500.0,0.00019178,2]
[388548663,1759240240995,-500.0,0.00019178,2]
[388548665,1759240241005,-480.0,0.00019178,2]
[388548667,1759240241017,-500.0,0.00019178,2]
[388548669,1759240241026,-500.0,0.00019178,2]
[388548671,1759240241035,-482.96062571,0.00019178,2]
[388548673,1759240241045,-500.0,0.00019178,2]
[388548674,1759240241054,-480.0,0.00019178,2]
[388548676,1759240241063,-152.286681,0.00019178,2]
[388548678,1759240241073,-500.0,0.00019178,2]
[388548680,1759240241083,-500.0,0.00019178,2]
[388548682,1759240241092,-500.0,0.00019178,2]
[388548684,1759240241101,-500.0,0.00019178,2]
[388548686,1759240241111,-524.35859322,0.00019178,2]
[388548688,1759240241120,-480.0,0.00019178,2]
[388548690,1759240241130,-151.0,0.00019178,2]
[388548692,1759240241140,-500.0,0.00019178,2]
[388548694,1759240241149,-480.89132859,0.00019178,2]
[388548696,1759240241159,-151.0,0.00019178,2]
[388548698,1759240241168,-480.0,0.00019178,2]
[388548700,1759240241177,-480.0,0.00019178,2]
[388548702,1759240241187,-500.0,0.00019178,2]
[388548704,1759240241202,-151.0,0.00019178,2]
[388548706,1759240241216,-151.0,0.00019178,2]
[388548708,1759240241225,-500.0,0.00019178,2]
[388548710,1759240241236,-482.32709947,0.00019178,2]
[388548712,1759240241245,-500.0,0.00019178,2]
[388548714,1759240241254,-151.0,0.00019178,2]
[388548716,1759240241266,-151.0,0.00019178,2]
[388548718,1759240241279,-151.0,0.00019178,2]
[388548720,1759240241289,-151.0,0.00019178,2]
[388548722,1759240241299,-151.0,0.00019178,2]
[388548724,1759240241309,-403.5943404,0.00019178,2]
[388548726,1759240241318,-151.0,0.00019178,2]
[388548728,1759240241328,-151.0,0.00019178,2]
[388548730,1759240241338,-500.0,0.00019178,2]
[388548732,1759240241347,-151.0,0.00019178,2]
[388548734,1759240241357,-151.0,0.00019178,2]
[388548736,1759240241366,-151.0,0.00019178,2]
[388548738,1759240241376,-151.0,0.00019178,2]
[388548740,1759240241385,-151.0,0.00019178,2]
[388548742,1759240241395,-151.0,0.00019178,2]
[388548744,1759240241404,-151.0,0.00019178,2]
[388548746,1759240241413,-5.76343813,0.00019178,2]
[388549509,1759240249928,279.05,0.00019168,3]
[388550537,1759240260662,837.2,0.00019168,3]
[388553545,1759240292803,188.53666504,0.00019078,2]
[388553654,1759240294056,167.03572335,0.00019078,2]
[388557767,1759240343164,859.26,0.00019168,3]
[388560597,1759240465239,168.0,0.00018959,2]
[388560598,1759240478103,363.0,0.00018535,2]
[388560600,1759240481334,363.0,0.0001854,2]
[388560601,1759240482060,-300.0,0.00019177,2]
[388560603,1759240485172,363.0,0.00018879,2]
[388560604,1759240488344,363.0,0.0001913,2]
[388560605,1759240502835,300.0,0.00019177,2]
[388560606,1759240562844,300.0,0.00019177,2]
[388560607,1759240623098,300.0,0.00019177,2]
[388560608,1759240633321,150.82933204,0.00019078,2]
[388560609,1759240683066,300.0,0.00019177,2]
[388560610,1759240743002,300.0,0.00019177,2]
[388560612,1759240973342,150.82933202,0.00019078,2]
[388560619,1759241031158,161.51,0.00025,30]
[388560620,1759241093010,-300.0,0.00019177,2]
[388560621,1759241102379,300.0,0.00019177,2]
[388560622,1759241102925,-232.61845327,0.00019177,2]
[388560623,1759241102958,-247.91944941,0.00019177,2]
[388560624,1759241102987,-204.60032971,0.00019177,2]
[388560625,1759241103018,-500.0,0.00019177,2]
[388560626,1759241162901,300.0,0.00019177,2]
[388560627,1759241222547,300.0,0.00019177,2]
[388560628,1759241283019,300.0,0.00019177,2]
[388560629,1759241296344,-160.0,0.00019178,2]
[388560630,1759241305026,-3678.99410691,0.00019178,2]
[388560631,1759241305491,-10000.01,0.00019178,2]
[388560632,1759241305848,-10000.01,0.00019178,2]
[388560633,1759241306136,-4525.51815331,0.00019178,2]
[388560634,1759241306166,-948.97369338,0.00019178,2]
[388560635,1759241306341,-460.0,0.00019178,2]
[388560636,1759241306375,-3722.3031793,0.00019178,2]
[388560637,1759241306403,-500.0,0.00019178,2]
[388560638,1759241306431,-135.4036414,0.00019178,2]
[388560639,1759241306498,-364.5963586,0.00019178,2]
[388560640,1759241306646,-460.0,0.00019178,2]
[388560641,1759241306679,-480.0,0.00019178,2]
[388560642,1759241306712,-480.0,0.00019178,2]
[388560643,1759241306741,-480.0,0.00019178,2]
[388560644,1759241306768,-480.0,0.00019178,2]
[388560645,1759241306796,-151.807615,0.00019178,2]
[388560646,1759241306824,-460.0,0.00019178,2]
[388560647,1759241306851,-480.0,0.00019178,2]
[388560648,1759241306879,-480.0,0.00019178,2]
[388560649,1759241306906,-500.0,0.00019178,2]
[388560650,1759241306933,-500.0,0.00019178,2]
[388560651,1759241307329,-481.83926645,0.00019178,2]
[388560652,1759241307357,-500.0,0.00019178,2]
[388560653,1759241307386,-500.0,0.00019178,2]
[388560654,1759241307413,-480.0,0.00019178,2]
[388560655,1759241307440,-500.0,0.00019178,2]
[388560656,1759241307467,-500.0,0.00019178,2]
[388560657,1759241307494,-279.63,0.00019178,2]
[388560658,1759241307522,-500.0,0.00019178,2]
[388560659,1759241307551,-500.0,0.00019178,2]